bitfinex/quotes_ETHUSD_20250413
["timestamp","ask_amount","ask_price","bid_price","bid_amount"]
[1744533063621,6.1891,1615.8,1615.5,3.8294]
[1744533063815,13.20785,1615.8,1615.5,4.831375]
[1744533064018,6.18935,1615.7,1615.5,1.831375]
[1744533064222,6.18935,1615.7,1615.4,3.0]
[1744533064584,6.18935,1615.7,1615.4,9.1904]
[1744533064793,6.18935,1615.7,1615.4,3.0]
[1744533065529,6.18983,1615.6,1615.3,3.0]
[1744533065831,13.20776,1615.8,1615.4,6.19028]
[1744533065996,6.18932,1615.7,1615.4,6.19028]
[1744533066184,0.8296,1615.8,1615.3,4.002042]
[1744533066386,19.20091,1615.9,1615.5,7.01914]
[1744533066992,6.18897,1615.8,1615.5,0.8294]
[1744533067192,6.18897,1615.8,1615.5,1.531374]
[1744533067508,6.18897,1615.8,1615.5,7.721284]
[1744533068223,13.01215,1615.9,1615.5,7.721224]
[1744533068430,13.01215,1615.9,1615.6,6.18963]
[1744533069501,6.18905,1615.8,1615.5,1.531374]
[1744533069914,13.01215,1615.9,1615.5,7.721264]
[1744533070110,12.18255,1615.9,1615.6,0.7721264]
[1744533071084,18.37126,1615.9,1615.6,0.7721264]
[1744533072214,18.37126,1615.9,1615.4,6.19037]
[1744533072415,18.37126,1615.9,1615.5,6.18986]
[1744533072587,18.37126,1615.9,1615.5,7.427883]
[1744533073118,12.18255,1615.9,1615.5,13.617723]
[1744533073331,13.16854,1616.2,1615.5,1.238023]
[1744533073629,6.98085,1616.2,1615.8,6.18859]
[1744533073914,0.7935,1616.2,1615.9,6.18847]
[1744533074088,6.98053,1616.3,1615.9,7.426176]
[1744533074612,6.18744,1616.2,1615.9,7.426176]
[1744533075185,6.18744,1616.2,1615.9,7.692576]
[1744533075615,6.98053,1616.3,1615.9,7.692576]
[1744533075821,6.98053,1616.3,1615.9,13.880876]
[1744533076017,5.994,1616.4,1616.1,6.18769]
[1744533076224,6.18662,1616.4,1616.1,6.18769]
[1744533076390,65.25644,1616.7,1616.2,6.45358]
[1744533076391,6.97945,1616.6,1616.2,6.45358]
[1744533076814,0.7935,1616.6,1616.3,6.18687]
[1744533077010,12.97222,1616.7,1616.3,7.450915]
[1744533077215,13.16495,1616.7,1616.3,6.18687]
[1744533078107,6.97922,1616.7,1616.3,6.18687]
[1744533078309,6.18572,1616.7,1616.5,0.2664]
[1744533078893,0.806,1616.9,1616.5,0.2664]
[1744533079194,12.36967,1616.9,1616.5,6.45246]
[1744533079720,14.286537,1616.9,1616.5,6.45246]
[1744533079926,6.18509,1616.8,1616.5,6.45246]
[1744533080533,14.286487,1616.9,1616.5,6.45246]
[1744533080849,8.101577,1616.9,1616.5,6.45246]
[1744533081141,6.99033,1617.0,1616.6,12.37125]
[1744533081796,2.2304951,1617.4,1616.5,3.0]
[1744533081998,6.98939,1617.3,1616.9,6.18452]
[1744533082215,0.698939,1617.2,1616.9,6.18452]
[1744533082537,6.882489,1617.2,1616.7,12.44371]
[1744533082691,6.18404,1617.1,1616.7,18.62899]
[1744533082896,6.18443,1617.0,1616.7,6.2584]
[1744533083413,7.0035,1617.1,1616.7,12.44382]
[1744533084743,6.18434,1617.0,1616.7,12.44382]
[1744533085051,12.36889,1617.0,1616.7,5.992]
[1744533085542,6.18434,1617.0,1616.7,5.992]
[1744533086620,6.18468,1616.9,1616.7,5.992]
[1744533087846,0.11828509,1616.8,1616.7,5.992]
[1744533088221,7.00351,1617.1,1616.7,8.28816]
[1744533088421,0.12401845,1617.0,1616.7,6.45183]
[1744533088722,6.30835845,1617.0,1616.7,6.45183]
[1744533089054,6.30835845,1617.0,1616.6,3.0]
[1744533089055,12.49293845,1617.0,1616.6,3.0]
[1744533089221,12.49293845,1617.0,1616.6,9.18568]
[1744533089852,6.18469,1616.9,1616.6,9.18568]
[1744533090149,0.12415488,1616.8,1616.6,9.18568]
[1744533090350,0.12415488,1616.8,1616.6,11.348506]
[1744533091527,0.12415488,1616.8,1616.5,6.2564]
[1744533091715,6.30948488,1616.8,1616.5,6.2564]
[1744533091919,6.18533,1616.8,1616.5,6.2564]
[1744533092246,0.12395023,1616.7,1616.5,6.2564]
[1744533092451,0.12395023,1616.7,1616.5,5.99]
[1744533092452,12.49504023,1616.7,1616.5,5.99]
[1744533092647,6.30939023,1616.7,1616.4,3.0]
[1744533092838,6.30939023,1616.7,1616.5,4.0]
[1744533093020,6.30939023,1616.7,1616.4,3.0]
[1744533093853,12.49503023,1616.7,1616.4,3.0]
[1744533094058,6.18588,1616.6,1616.4,3.0]
[1744533094354,0.12347267,1616.5,1616.4,3.0]
[1744533094518,0.12347267,1616.5,1616.3,0.2664]
[1744533094719,7.75466794,1616.5,1616.4,0.5]
[1744533095629,0.12347267,1616.5,1616.4,0.5]
[1744533095831,6.18597,1616.6,1616.4,0.5]
[1744533096155,6.30946799,1616.5,1616.4,0.5]
[1744533097652,7.12336799,1616.5,1616.4,0.5]
[1744533098154,6.18665,1616.4,1616.0,12.37595]
[1744533098359,12.3735,1616.4,1616.1,1.237595]
[1744533098545,6.18737,1616.2,1615.9,9.45485]
[1744533098742,6.30859552,1616.3,1615.9,9.45485]
[1744533099052,0.12142552,1616.2,1615.9,15.64317]
[1744533100253,0.12142552,1616.2,1615.9,9.45472]
[1744533100461,0.12142552,1616.2,1616.0,0.945472]
[1744533100844,0.12142552,1616.2,1616.0,7.133442]
[1744533101866,0.12142552,1616.2,1616.0,0.945472]
[1744533102068,6.30878552,1616.2,1616.0,0.945472]
[1744533102437,6.30878552,1616.2,1615.9,3.2664]
[1744533102632,7.00126,1616.2,1615.9,3.2664]
[1744533102838,6.18705,1616.3,1615.9,9.45454]
[1744533103068,0.11808194,1616.2,1616.1,12.37517]
[1744533103248,7.00632,1616.6,1616.2,6.18706]
[1744533103249,7.00634,1616.6,1616.2,6.18706]
[1744533103454,0.11739939,1616.5,1616.2,13.638373]
[1744533103665,0.11739939,1616.5,1616.2,7.451163]
[1744533103872,12.49018939,1616.5,1616.2,1.264103]
[1744533104240,6.30370939,1616.5,1616.2,1.264103]
[1744533104770,6.30370939,1616.5,1616.3,0.5]
[1744533105067,12.49012939,1616.5,1616.3,0.5]
[1744533105445,6.18658,1616.4,1616.3,0.5]
[1744533105871,6.30397939,1616.4,1616.3,0.5]
[1744533106465,0.11739939,1616.4,1616.3,0.5]
[1744533109150,6.30397939,1616.4,1616.3,0.5]
[1744533109971,0.11739939,1616.4,1616.3,0.5]
[1744533112681,0.7917,1617.1,1616.9,6.18462]
[1744533112853,6.18355,1617.2,1616.9,6.18462]
[1744533113051,6.18355,1617.2,1616.8,6.45145]
[1744533113363,7.499402,1617.2,1616.8,14.8469951]
[1744533113763,6.18355,1617.2,1616.9,6.18465]
[1744533114178,6.97497,1617.3,1616.9,6.18465]
[1744533114485,6.97497,1617.3,1616.9,12.36914]
[1744533116486,6.97497,1617.3,1617.0,6.18424]
[1744533117191,0.02,1617.4,1617.1,0.2664]
[1744533117399,0.02,1617.4,1617.2,6.18344]
[1744533118451,0.02,1617.4,1617.3,6.44954]
[1744533119783,0.02,1617.4,1617.2,6.44984]
[1744533119964,0.02,1617.4,1617.2,6.44969]
[1744533120387,0.02,1617.4,1617.3,6.18314]
[1744533120584,0.02,1617.4,1617.3,7.66747251]
[1744533123566,0.02,1617.4,1617.3,10.93387251]
[1744533124725,0.02,1617.4,1617.3,16.94297634]
[1744533125002,1e-05,1617.4,1617.3,17.05603955]
[1744533125497,1e-05,1617.4,1617.3,23.10603955]
[1744533125871,1e-05,1617.4,1617.3,23.59603955]
[1744533126700,1e-05,1617.4,1617.3,24.14603955]
[1744533127318,7.3978717,1618.2,1617.4,0.55]
[1744533127319,0.3952217,1618.2,1617.4,0.55]
[1744533127602,0.3952217,1618.2,1618.1,11.6569751]
[1744533127773,0.3952217,1618.2,1618.1,23.71607893]
[1744533128580,0.3952217,1618.2,1618.1,22.00558383]
[1744533129603,0.3952217,1618.2,1618.1,12.55910383]
[1744533129806,0.3952217,1618.2,1618.1,0.5]
[1744533130911,7.1088217,1618.2,1618.1,0.5]
[1744533131069,8.43763887,1618.2,1618.1,0.5]
[1744533131274,7.1088217,1618.2,1618.1,0.5]
[1744533133106,0.9291217,1618.2,1618.1,0.5]
[1744533133783,6.3249217,1618.2,1618.1,0.5]
[1744533134305,7.1248217,1618.2,1618.1,0.5]
[1744533135106,6.18009,1618.1,1617.7,21.50510383]
[1744533135319,6.18009,1618.1,1617.7,18.21935689]
[1744533135682,13.3046717,1618.2,1617.7,18.21910689]
[1744533135902,13.3046717,1618.2,1617.8,6.18122]
[1744533136839,6.18033,1618.1,1617.7,12.03775689]
[1744533137011,6.18052,1618.0,1617.7,5.98975689]
[1744533137310,6.18033,1618.1,1617.7,12.17130689]
[1744533137695,0.9451217,1618.2,1617.9,6.18053]
[1744533137895,0.9451217,1618.2,1618.0,6.18029]
[1744533138710,0.9451217,1618.2,1617.9,6.18053]
[1744533139235,0.1452217,1618.2,1618.1,6.44648]
[1744533140527,0.1452217,1618.2,1618.0,8.3908151]
[1744533140735,0.1452217,1618.2,1618.1,0.83908151]
[1744533141034,0.1452217,1618.2,1617.9,20.84744893]
[1744533141336,0.1452217,1618.2,1618.0,6.18042]
[1744533141831,0.1452217,1618.2,1617.9,20.84731893]
[1744533142041,0.1452217,1618.2,1617.9,6.00910383]
[1744533142228,6.3252817,1618.2,1617.9,6.00910383]
[1744533142805,0.1452217,1618.2,1617.9,12.18985383]
[1744533143039,0.1452217,1618.2,1617.9,14.13525228]
[1744533143716,6.18009,1618.1,1617.8,13.44516069]
[1744533143922,6.18009,1618.1,1618.0,0.5]
[1744533144728,6.3249317,1618.2,1618.0,0.5]
[1744533145027,6.18008,1618.1,1618.0,0.5]
[1744533145232,6.3249317,1618.2,1618.0,0.5]
[1744533145439,0.1452217,1618.2,1618.0,12.86066]
[1744533145603,0.1452217,1618.2,1618.1,1.286066]
[1744533145815,0.1452217,1618.2,1618.1,7.466146]
[1744533146220,0.1452217,1618.2,1618.1,13.47524983]
[1744533146465,0.1452217,1618.2,1618.1,13.74164983]
[1744533147131,0.1452217,1618.2,1618.1,16.74164983]
[1744533147939,0.1452217,1618.2,1618.1,17.29164983]
[1744533148286,0.7956,1619.3,1618.7,6.17777]
[1744533148552,6.17618,1619.2,1618.8,6.794957]
[1744533148925,6.97124,1619.3,1618.9,6.1769]
[1744533149168,6.17592,1619.2,1618.8,6.794957]
[1744533150223,6.17628,1619.1,1618.8,6.794957]
[1744533150423,12.35285,1619.1,1618.8,0.617777]
[1744533150620,12.35285,1619.1,1618.3,6.17915]
[1744533150621,0.7956,1619.0,1618.4,14.66490893]
[1744533150850,6.97317,1618.8,1618.4,6.00910383]
[1744533151055,6.17832,1618.6,1618.2,6.1797]
[1744533151852,0.7956,1618.4,1618.1,13.62515331]
[1744533152068,0.7956,1618.4,1618.1,13.512146]
[1744533152257,0.7956,1618.4,1618.2,1.3512146]
[1744533152452,0.5456,1618.4,1618.2,1.3512146]
[1744533153690,0.5456,1618.4,1617.9,6.18079]
[1744533153854,6.18013,1618.1,1617.8,6.045]
[1744533154053,6.18013,1618.1,1617.7,59.18258]
[1744533154054,12.36054,1618.1,1617.7,6.18158]
[1744533154262,6.18075,1618.0,1617.6,14.91793893]
[1744533154460,12.36155,1618.0,1617.7,1.49179389]
[1744533154658,12.36155,1618.0,1617.6,3.0]
[1744533154659,6.18092,1617.9,1617.6,3.0]
[1744533154977,6.18125,1617.8,1617.5,6.045]
[1744533155177,6.18125,1617.8,1617.4,12.22836947]
[1744533155495,0.7662,1617.7,1617.4,4.0]
[1744533155648,6.18225,1617.6,1617.4,4.0]
[1744533155852,6.18225,1617.6,1617.2,6.18341]
[1744533156088,6.18225,1617.6,1617.5,0.5]
[1744533156290,6.18225,1617.6,1617.2,6.18341]
[1744533156455,6.18225,1617.6,1617.3,0.618341]
[1744533157077,6.18241,1617.5,1617.1,6.18372]
[1744533157272,6.18241,1617.5,1617.1,12.36736]
[1744533157648,6.18241,1617.5,1617.1,6.18364]
[1744533157851,0.7662,1617.7,1617.4,6.1826]
[1744533158049,0.7808,1618.2,1617.4,5.42060235]
[1744533158391,6.17856,1618.5,1618.0,6.18046]
[1744533158553,6.95993,1618.4,1618.0,6.18046]
[1744533158755,13.13915,1618.4,1617.9,15.36142]
[1744533158960,6.95993,1618.4,1618.0,12.36071]
[1744533159189,0.7808,1618.4,1618.0,1.536071]
[1744533159491,6.959,1618.6,1618.2,12.35898]
[1744533160263,6.959,1618.6,1618.2,6.17944]
[1744533161171,6.959,1618.6,1618.3,0.5]
[1744533162091,0.7808,1618.6,1618.3,6.67899]
[1744533163671,0.8267,1618.6,1618.3,0.5]
[1744533163867,7.00493,1618.6,1618.3,0.5]
[1744533164192,0.8267,1618.6,1618.3,6.67931]
[1744533164392,0.8267,1618.6,1618.3,7.965188]
[1744533164765,7.00492,1618.6,1618.3,1.785878]
[1744533166121,0.8267,1618.6,1618.4,6.1789]
[1744533167103,0.8267,1618.6,1618.3,7.965018]
[1744533167422,0.8267,1618.6,1618.4,0.7965018]
[1744533167710,6.17742,1618.8,1618.3,0.5]
[1744533167711,6.17894,1618.4,1618.3,0.5]
[1744533168010,0.8051,1618.6,1618.2,6.17956]
[1744533168212,6.9834,1618.6,1618.1,6.69647]
[1744533168505,6.17858,1618.5,1618.0,6.18045]
[1744533168702,6.17899,1618.4,1618.0,13.948416]
[1744533170307,6.17899,1618.4,1618.0,7.767966]
[1744533170909,6.17864,1618.5,1618.1,6.17982]
[1744533171313,6.17864,1618.5,1618.1,6.67982]
[1744533171509,9.17745,1618.8,1618.1,6.67982]
[1744533171510,6.95755,1618.8,1618.4,6.17889]
[1744533171808,0.7801,1618.8,1618.4,12.975499]
[1744533172504,6.17742,1618.8,1618.4,6.796609]
[1744533172808,6.17742,1618.8,1618.4,12.975289]
[1744533172982,6.17742,1618.8,1618.3,6.69538]
[1744533172983,6.17775,1618.8,1618.3,6.69538]
[1744533173177,6.17775,1618.8,1618.4,6.17878]
[1744533173378,6.17804,1618.7,1618.3,6.69538]
[1744533173615,6.17818,1618.6,1618.2,9.17956]
[1744533173776,6.17818,1618.6,1618.3,0.917956]
[1744533174709,6.17818,1618.6,1618.2,6.17948]
[1744533175088,6.17818,1618.6,1618.2,12.35902]
[1744533175312,12.35662,1618.6,1618.2,6.17948]
[1744533175614,6.17818,1618.6,1618.2,12.35897]
[1744533175812,6.17818,1618.6,1618.2,6.17948]
[1744533176019,6.17818,1618.6,1618.2,14.86547138]
[1744533177912,6.17818,1618.6,1618.2,2.50646138]
[1744533178119,0.8188,1618.6,1618.1,6.67997]
[1744533178418,6.17919,1618.4,1618.1,0.5]
[1744533178613,6.17919,1618.4,1618.1,6.68005]
[1744533178817,6.17861,1618.5,1618.1,6.68005]
[1744533179688,12.35739,1618.5,1618.1,6.68005]
[1744533180018,6.17895,1618.4,1618.1,6.68005]
[1744533180517,6.17894,1618.4,1618.1,0.5]
[1744533180818,6.1797,1618.2,1618.1,0.5]
[1744533181121,6.1797,1618.2,1617.6,12.88016]
[1744533181122,6.1805,1618.0,1617.7,3.0]
[1744533181541,6.18103,1617.9,1617.5,6.91366923]
[1744533181744,0.8188,1618.0,1617.8,6.18118]
[1744533182048,6.17979,1618.2,1617.8,6.18113]
[1744533182049,6.99875,1618.2,1617.8,6.18113]
[1744533182388,6.18101,1617.9,1617.5,6.80041]
[1744533182626,6.18101,1617.9,1617.5,12.98255]
[1744533182830,12.36213,1617.9,1617.5,6.8004]
[1744533183027,6.18125,1617.8,1617.5,0.61826]
[1744533183333,6.18161,1617.7,1617.3,6.18285]
[1744533184250,12.36349,1617.7,1617.3,6.18285]
[1744533184543,0.8295,1617.6,1617.3,6.18285]
[1744533184750,7.01166,1617.6,1617.1,18.84859163]
[1744533185149,6.18243,1617.5,1617.1,12.19278383]
[1744533185314,6.18289,1617.4,1617.2,1.21927838]
[1744533185509,0.8295,1617.3,1617.0,6.18405]
[1744533186430,0.8295,1617.3,1617.1,0.5]
[1744533186739,7.01281,1617.3,1617.1,0.5]
[1744533188541,0.8295,1617.3,1617.1,0.5]
[1744533188726,7.086,1617.5,1617.2,6.18337]
[1744533189213,0.785,1617.5,1617.2,6.851707]
[1744533189530,6.96741,1617.5,1617.2,0.668337]
[1744533189734,13.15007,1617.5,1617.1,6.68386]
[1744533189921,6.18277,1617.4,1617.1,6.68386]
[1744533190117,12.36581,1617.4,1617.1,0.5]
[1744533190528,6.18277,1617.4,1617.1,0.5]
[1744533191337,6.96742,1617.5,1617.1,6.6839]
[1744533191742,13.15006,1617.5,1617.1,6.6839]
[1744533193148,6.1829,1617.4,1617.1,0.5]
[1744533193448,6.9674,1617.5,1617.2,6.18346]
[1744533193643,6.9674,1617.5,1617.1,6.68386]
[1744533194548,6.9674,1617.5,1617.1,6.68375]
[1744533195652,6.18279,1617.4,1617.1,0.5]
[1744533195948,6.18329,1617.3,1617.1,0.5]
[1744533196449,7.01272,1617.2,1617.1,0.5]
[1744533198964,8.332321,1617.2,1617.1,0.5]
[1744533199175,6.18443,1617.0,1616.6,12.37143]
[1744533199333,6.18443,1617.0,1616.7,4.0]
[1744533199961,7.01064,1616.9,1616.7,4.0]
[1744533200327,7.01064,1616.9,1616.5,12.37214]
[1744533200656,7.01064,1616.9,1616.6,1.237214]
[1744533200827,8.172601,1617.2,1616.6,1.237214]
[1744533201033,0.8258,1617.1,1616.8,6.18468]
[1744533201236,6.1845,1617.0,1616.6,8.37203151]
[1744533201627,6.18488,1616.9,1616.5,6.18615]
[1744533201864,12.36977,1616.9,1616.5,6.18615]
[1744533202049,7.01008,1617.1,1616.7,6.18529]
[1744533202254,0.8258,1617.5,1617.2,6.18326]
[1744533202459,0.8258,1617.5,1617.0,11.37055151]
[1744533202629,6.18289,1617.4,1617.0,11.37038151]
[1744533202963,6.18334,1617.3,1617.0,3.0]
[1744533203464,12.3668,1617.3,1617.0,3.0]
[1744533203845,12.36734,1617.2,1617.0,0.970085]
[1744533204040,6.18353,1617.2,1616.9,3.5164]
[1744533204436,12.36731,1617.2,1617.0,0.5]
[1744533204641,6.1839,1617.1,1617.0,0.5]
[1744533206276,6.18306,1617.4,1617.0,6.68426]
[1744533206440,12.36612,1617.4,1617.1,0.5164]
[1744533206941,12.36612,1617.4,1617.0,7.652686]
[1744533207154,6.93804,1617.3,1617.0,1.468426]
[1744533207567,6.18368,1617.2,1617.0,0.5]
[1744533207871,12.36747,1617.2,1617.0,0.5]
[1744533208770,6.9925,1617.1,1617.0,0.5]
[1744533209673,6.1853,1616.8,1616.5,0.5164]
[1744533210366,12.3706,1616.8,1616.6,4.0]
[1744533210536,12.3706,1616.8,1616.5,0.5164]
[1744533210736,12.3706,1616.8,1616.5,0.670275]
[1744533210935,13.1792,1616.8,1616.5,0.670275]
[1744533211867,13.1792,1616.8,1616.4,6.18635]
[1744533211868,6.18565,1616.7,1616.3,68.19562151]
[1744533212087,6.18582,1616.6,1616.3,66.00933]
[1744533212238,6.18582,1616.6,1616.3,13.00733]
[1744533213141,6.18623,1616.5,1616.3,6.304]
[1744533213340,6.18623,1616.5,1616.2,3.0]
[1744533213569,6.18623,1616.5,1616.2,4.19103615]
[1744533214081,6.18732,1616.3,1616.1,0.02]
[1744533214368,6.97515,1616.2,1616.1,0.02]
[1744533215985,7.52515,1616.2,1616.1,0.02]
[1744533217054,10.52515,1616.2,1616.1,0.02]
[1744533217248,12.41502615,1616.2,1616.1,0.02]
[1744533219092,6.18988,1615.6,1615.4,3.0]
[1744533219658,12.37978,1615.6,1615.4,3.0]
[1744533220443,6.18988,1615.6,1615.4,3.0]
[1744533221709,6.99997,1615.8,1615.4,9.19027]
[1744533221871,6.99997,1615.8,1615.4,10.780014]
[1744533223124,6.98247,1616.0,1615.5,6.18974]
[1744533223421,6.98247,1616.0,1615.6,6.70591]
[1744533223590,13.17081,1616.0,1615.6,6.70591]
[1744533225805,12.37651,1616.0,1615.6,6.70591]
[1744533225975,6.18852,1615.9,1615.6,6.70591]
[1744533226405,6.18817,1616.0,1615.6,6.70583]
[1744533226578,12.37658,1616.0,1615.6,7.99541]
[1744533227112,6.18855,1615.9,1615.6,7.99541]
[1744533227704,6.18855,1615.9,1615.6,1.80598]
[1744533231609,0.7943,1616.2,1615.6,1.80598]
[1744533231773,6.18747,1616.2,1615.9,6.18848]
[1744533232220,12.37506,1616.2,1615.8,6.18867]
[1744533232414,6.18747,1616.2,1615.8,6.18867]
[1744533232705,6.18747,1616.2,1615.9,0.5]
[1744533233485,12.37507,1616.2,1615.9,0.5]
[1744533234724,6.18806,1616.1,1615.9,0.5]
[1744533235015,12.37614,1616.1,1615.9,0.5]
[1744533235211,6.18806,1616.1,1615.9,0.5]
[1744533235586,6.18739,1616.2,1615.9,0.5]
[1744533235813,12.37496,1616.2,1615.9,0.5]
[1744533237939,6.18777,1616.1,1615.9,0.5]
[1744533239809,6.18777,1616.1,1615.9,1.168876]
[1744533242839,6.18777,1616.1,1615.9,0.5]
[1744533243044,6.18811,1616.0,1615.9,0.5]
[1744533243543,6.18871,1615.9,1615.5,12.71552383]
[1744533243759,6.18871,1615.9,1615.5,6.70642]
[1744533244540,0.8286,1616.3,1615.6,3.5164]
[1744533244750,6.18781,1616.1,1615.7,12.72994]
[1744533245613,6.18781,1616.1,1615.7,13.22994]
[1744533247765,6.18756,1616.2,1615.9,0.5164]
[1744533248059,0.7782,1616.5,1616.0,6.70451]
[1744533248238,6.94547,1616.7,1616.3,0.5164]
[1744533248439,6.18595,1616.6,1616.3,0.5164]
[1744533248631,0.7599,1616.7,1616.3,6.70327]
[1744533248826,0.7599,1616.9,1616.5,6.18598]
[1744533249028,6.18566,1616.7,1616.3,0.5164]
[1744533249362,6.18604,1616.6,1616.3,0.5164]
[1744533249950,6.18604,1616.6,1616.3,6.70336]
[1744533250151,6.18556,1616.7,1616.3,6.70336]
[1744533250962,6.18587,1616.6,1616.3,0.5164]
[1744533251331,6.18587,1616.6,1616.3,6.70332]
[1744533251535,6.18587,1616.6,1616.3,9.51557538]
[1744533252477,6.18556,1616.7,1616.3,9.51557538]
[1744533255459,6.18633,1616.5,1616.2,3.0]
[1744533256058,6.18662,1616.4,1616.2,3.0]
[1744533257370,12.37344,1616.4,1616.2,3.0]
[1744533258245,6.18662,1616.4,1616.2,3.0]
[1744533258647,6.18662,1616.4,1616.0,3.0]
[1744533258848,6.18718,1616.3,1615.9,12.92684]
[1744533259047,6.18755,1616.2,1615.9,6.7384]
[1744533260068,12.37512,1616.2,1615.9,0.5164]
[1744533260435,6.18798,1616.1,1615.9,0.5164]
[1744533260850,6.18741,1616.2,1615.9,0.5164]
[1744533261231,6.18701,1616.3,1616.0,6.18806]
[1744533261871,12.37419,1616.3,1615.9,7.675346]
[1744533263069,6.18701,1616.3,1615.9,7.675346]
[1744533263764,6.18738,1616.2,1615.9,7.675346]
[1744533264863,6.18701,1616.3,1616.0,6.18811]
[1744533265170,12.37422,1616.3,1615.9,7.675256]
[1744533265867,6.18701,1616.3,1615.9,7.675256]
[1744533266033,6.18701,1616.3,1615.9,13.863556]
[1744533267673,6.18701,1616.3,1616.0,7.5744356]
[1744533271271,6.18664,1616.4,1616.1,6.18769]
[1744533274086,6.93672,1616.8,1616.4,12.37272]
[1744533274256,12.36965,1616.9,1616.5,6.70244]
[1744533274453,12.36965,1616.9,1616.5,0.5164]
[1744533274454,6.18515,1616.8,1616.5,0.5164]
[1744533275269,6.18434,1617.0,1616.6,6.18573]
[1744533275799,12.36887,1617.0,1616.6,6.18573]
[1744533276988,6.18469,1616.9,1616.6,6.18573]
[1744533277352,6.18469,1616.9,1616.6,7.474544]
[1744533279183,6.18522,1616.8,1616.5,0.5164]
[1744533279396,6.97409,1616.9,1616.5,6.70247]
[1744533279683,6.97409,1616.9,1616.5,12.88852]
[1744533279994,6.97409,1616.9,1616.6,6.1858]
[1744533280193,6.18469,1616.9,1616.6,6.1858]
[1744533280493,6.18469,1616.9,1616.6,1.288825]
[1744533280687,12.36961,1616.9,1616.6,1.288825]
[1744533280865,6.18507,1616.8,1616.6,1.288825]
[1744533281067,6.18507,1616.8,1616.5,0.5164]
[1744533281269,6.18451,1617.0,1616.5,6.70223]
[1744533281467,12.36918,1617.0,1616.6,6.18568]
[1744533281794,6.18451,1617.0,1616.7,6.1854]
[1744533282690,6.97305,1617.2,1616.8,0.5164]
[1744533282891,6.97305,1617.2,1616.8,12.88618]
[1744533283592,6.18365,1617.2,1616.9,6.18466]
[1744533284492,13.2201,1617.3,1616.9,12.36915]
[1744533284796,13.2201,1617.3,1616.9,13.657705]
[1744533284987,19.40351,1617.3,1616.9,7.473045]
[1744533285970,13.2201,1617.3,1616.9,7.473045]
[1744533286406,6.9981,1617.3,1616.9,7.473045]
[1744533286887,6.1832,1617.3,1616.9,13.657525]
[1744533287201,6.1832,1617.3,1617.0,1.3657525]
[1744533288266,6.18281,1617.4,1617.1,0.5164]
[1744533288474,13.17226,1617.6,1617.2,6.18333]
[1744533288699,6.1825,1617.5,1617.2,6.18333]
[1744533289482,0.8081,1617.6,1617.1,0.5164]
[1744533289682,6.18352,1617.2,1616.8,12.88743]
[1744533289883,6.18352,1617.2,1616.9,1.288743]
[1744533290174,6.18352,1617.2,1617.0,0.5]
[1744533290802,12.36726,1617.2,1617.0,0.5]
[1744533291323,6.18352,1617.2,1617.0,0.5]
[1744533292288,12.36732,1617.2,1617.0,0.5]
[1744533292600,6.18352,1617.2,1617.0,0.5]
[1744533296009,6.1839,1617.1,1617.0,0.5]
[1744533296711,6.18445,1617.0,1616.6,12.88704]
[1744533297012,12.36904,1617.0,1616.6,12.88704]
[1744533297183,12.36904,1617.0,1616.6,6.70204]
[1744533299700,12.36904,1617.0,1616.6,12.88766]
[1744533300018,6.18445,1617.0,1616.7,1.288766]
[1744533300224,6.18445,1617.0,1616.7,1.788766]
[1744533300793,13.17866,1617.1,1616.7,7.974046]
[1744533301822,6.18433,1617.0,1616.7,1.788766]
[1744533301990,6.18505,1616.8,1616.7,0.5]
[1744533304110,7.00415,1616.8,1616.7,0.5]
[1744533305628,6.1871,1616.3,1616.1,0.5164]
[1744533305828,6.1871,1616.3,1616.0,4.3863556]
[1744533306028,6.1871,1616.3,1616.1,4.0]
[1744533306235,6.18735,1616.2,1616.1,4.0]
[1744533306428,6.18735,1616.2,1616.0,1.3863556]
[1744533306730,6.1871,1616.3,1616.0,1.3863556]
[1744533306731,6.1871,1616.3,1616.0,6.18805]
[1744533307498,6.1871,1616.3,1615.9,6.70472]
[1744533307700,12.37431,1616.3,1615.9,6.70472]
[1744533308420,6.1871,1616.3,1615.9,6.70472]
[1744533309445,6.1871,1616.3,1615.9,12.89307]
[1744533309744,6.1871,1616.3,1616.0,1.289307]
[1744533310842,12.37438,1616.3,1616.0,1.289307]
[1744533311221,0.8191,1616.4,1616.0,1.289307]
[1744533311427,0.8191,1616.4,1616.1,6.18759]
[1744533311947,7.00572,1616.4,1616.0,6.18806]
[1744533312150,6.18737,1616.2,1615.9,9.70478]
[1744533312843,6.18737,1616.2,1615.9,6.70478]
[1744533313553,0.8191,1616.4,1615.7,6.70562]
[1744533313844,0.8191,1616.4,1615.5,71.88846383]
[1744533313845,6.189,1615.8,1615.5,71.88846383]
[1744533314014,6.189,1615.8,1615.5,18.9863196]
[1744533314215,6.189,1615.8,1615.5,12.84136]
[1744533314627,6.189,1615.8,1615.5,6.70636]
[1744533314875,6.189,1615.8,1615.5,0.5164]
[1744533315649,12.37814,1615.8,1615.5,0.5164]
[1744533316331,6.189,1615.8,1615.5,0.5164]
[1744533316536,6.18821,1616.0,1615.5,1.187066]
[1744533316832,6.135,1616.2,1615.9,0.5164]
[1744533316833,6.18747,1616.2,1615.9,0.5164]
[1744533317259,6.18747,1616.2,1615.8,6.70515]
[1744533318256,6.18814,1616.0,1615.7,6.70563]